bitfinex-derivatives/quotes_SOLF0:USTF0_20250830
["timestamp","ask_amount","ask_price","bid_price","bid_amount"]
[1756559793382,13.1834433,197.98,197.83,7.94]
[1756559794682,5.1434433,197.95,197.83,7.94]
[1756559794879,8.04,197.94,197.83,7.94]
[1756559796674,5.1434433,197.95,197.83,7.94]
[1756559796880,5.1434433,197.98,197.83,7.94]
[1756559799083,8.04,197.99,197.86,7.93]
[1756559801979,5.1434433,197.98,197.86,7.93]
[1756559802281,7.69,197.97,197.86,7.93]
[1756559803383,7.69,198.02,197.88,7.93]
[1756559804082,7.69,197.99,197.88,7.93]
[1756559804673,7.69,197.99,197.89,7.93]
[1756559806685,7.69,197.96,197.83,7.93]
[1756559809077,7.69,198.0,197.84,7.93]
[1756559809276,7.69,198.0,197.8,339.4]
[1756559809277,7.69,198.0,197.87,7.93]
[1756559809480,5.1434433,198.03,197.9,7.93]
[1756559812083,7.69,198.02,197.9,7.93]
[1756559812285,7.69,197.99,197.9,7.93]
[1756559812586,73.82,198.08,197.86,7.93]
[1756559812587,7.69,197.96,197.86,7.93]
[1756559815093,12.8334433,198.01,197.86,7.93]
[1756559815292,7.69,198.12,197.91,5.1434433]
[1756559815590,12.8334433,198.12,197.95,7.93]
[1756559815888,12.8334433,198.12,197.96,5.1434433]
[1756559817587,12.8334433,198.12,197.97,7.93]
[1756559819289,5.1434433,198.09,197.97,7.93]
[1756559819488,7.69,198.08,197.97,7.93]
[1756559820695,112.00258376,198.16,197.97,7.93]
[1756559820987,7.69,198.15,198.03,7.93]
[1756559821187,5.1434433,198.14,198.03,7.93]
[1756559821384,7.69,198.13,198.03,7.93]
[1756559822890,112.00258376,198.16,198.03,7.93]
[1756559823287,112.00258376,198.16,198.01,7.93]
[1756559823590,112.00258376,198.16,198.07,7.93]
[1756559825294,339.54,198.19,198.07,7.93]
[1756559825492,7.69,198.21,198.08,7.93]
[1756559825892,7.69,198.21,198.11,7.93]
[1756559828000,8.18,198.25,198.11,7.93]
[1756559828292,8.18,198.25,198.01,8.24]
[1756559828293,8.18,198.25,198.14,7.41]
[1756559833591,8.18,198.25,198.14,12.5534433]
[1756559837396,8.18,198.25,198.14,5.1434433]
[1756559837599,8.18,198.25,198.15,7.41]
[1756559838109,8.18,198.29,198.15,7.41]
[1756559839207,8.18,198.29,198.17,5.1434433]
[1756559839407,8.18,198.34,198.2,5.1434433]
[1756559839613,8.18,198.34,198.21,7.41]
[1756559839911,13.3234433,198.39,198.24,7.41]
[1756559840106,13.3234433,198.39,198.21,16.24]
[1756559840107,8.18,198.39,198.27,7.41]
[1756559840701,8.18,198.39,198.31,0.03449499]
[1756559842909,8.18,198.43,198.31,0.03449499]
[1756559843306,8.18,198.43,198.3,12.5534433]
[1756559843501,5.1434433,198.47,198.33,5.1434433]
[1756559843502,8.18,198.46,198.33,5.1434433]
[1756559843706,8.18,198.46,198.35,0.03768603]
[1756559844703,8.18,198.46,198.36,5.1434433]
[1756559844901,8.18,198.46,198.37,7.41]
[1756559845213,8.18,198.46,198.36,5.1434433]
[1756559845214,0.03599747,198.42,198.25,15.16]
[1756559845412,0.03599747,198.42,198.4,0.03513547]
[1756559845606,8.18,198.49,198.41,7.41]
[1756559846210,8.18,198.49,198.43,0.03324179]
[1756559852617,8.18,198.47,198.43,0.03324179]
[1756559853016,8.18,198.47,198.35,7.41]
[1756559853411,8.18,198.47,198.43,0.03609818]
[1756559853612,8.18,198.47,198.35,7.41]
[1756559854023,5.1434433,198.48,198.43,0.0339167]
[1756559854212,8.18,198.47,198.35,7.41]
[1756559854613,8.18,198.42,198.29,12.5534433]
[1756559855909,5.1434433,198.45,198.29,12.5534433]
[1756559856113,8.18,198.41,198.29,12.5534433]
[1756559856620,8.18,198.41,198.29,7.41]
[1756559857120,8.18,198.41,198.3,5.1434433]
[1756559857319,7.6,198.48,198.34,7.96]
[1756559857617,7.6,198.48,198.24,5.1434433]
[1756559857618,7.6,198.48,198.36,7.96]
[1756559857920,7.6,198.48,198.38,5.1434433]
[1756559858117,7.6,198.48,198.39,7.96]
[1756559859220,7.6,198.54,198.39,7.96]
[1756559859418,7.6,198.54,198.4,5.1434433]
[1756559860118,7.6,198.54,198.43,5.1434433]
[1756559860618,7.6,198.54,198.44,7.96]
[1756559861919,7.6,198.54,198.46,5.1434433]
[1756559862116,7.6,198.54,198.44,7.96]
[1756559862316,7.6,198.54,198.45,5.1434433]
[1756559863718,7.6,198.58,198.48,13.1034433]
[1756559863925,7.6,198.58,198.51,5.1434433]
[1756559864221,7.6,198.63,198.52,7.96]
[1756559864420,7.6,198.61,198.49,5.1434433]
[1756559864822,7.6,198.61,198.47,7.96]
[1756559865216,7.6,198.61,198.45,5.1434433]
[1756559865415,7.6,198.6,198.45,13.1034433]
[1756559865612,12.7434433,198.6,198.45,13.1034433]
[1756559866420,12.7434433,198.6,198.45,7.96]
[1756559866720,7.6,198.59,198.45,7.96]
[1756559866920,5.1434433,198.54,198.37,13.1034433]
[1756559867225,5.1434433,198.6,198.37,7.96]
[1756559867226,7.6,198.5,198.37,7.96]
[1756559868020,7.6,198.5,198.37,13.1034433]
[1756559870523,7.6,198.5,198.38,7.96]
[1756559870725,5.1434433,198.54,198.41,7.96]
[1756559870917,12.7434433,198.54,198.41,7.96]
[1756559871122,7.6,198.54,198.41,7.96]
[1756559871720,12.7434433,198.54,198.37,5.1434433]
[1756559871925,7.6,198.5,198.37,13.1034433]
[1756559872828,7.6,198.5,198.37,7.96]
[1756559874632,12.7434433,198.5,198.37,7.96]
[1756559875432,7.6,198.46,198.32,7.96]
[1756559876841,20.54222919,198.54,198.32,7.96]
[1756559876842,7.6,198.43,198.32,7.96]
[1756559877643,7.6,198.43,198.34,5.1434433]
[1756559877841,7.6,198.43,198.35,7.96]
[1756559880342,7.6,198.43,198.31,5.1434433]
[1756559880641,7.6,198.43,198.3,7.96]
[1756559880838,28.71,198.52,198.3,7.96]
[1756559880839,7.6,198.4,198.3,7.96]
[1756559883935,5.1434433,198.45,198.3,7.96]
[1756559884145,7.6,198.44,198.3,7.96]
[1756559884939,5.1434433,198.38,198.25,7.96]
[1756559885145,7.6,198.37,198.25,7.96]
[1756559885949,7.6,198.34,198.21,7.96]
[1756559887450,5.1434433,198.4,198.24,7.59]
[1756559887649,7.39,198.39,198.26,5.1434433]
[1756559888147,7.39,198.39,198.27,7.59]
[1756559889242,7.39,198.39,198.3,7.59]
[1756559890137,7.39,198.45,198.32,5.1434433]
[1756559890348,7.39,198.45,198.33,7.59]
[1756559892049,7.39,198.45,198.35,5.1434433]
[1756559892244,7.39,198.45,198.36,7.59]
[1756559892448,7.39,198.45,198.36,12.7334433]
[1756559895050,7.39,198.45,198.36,7.59]
[1756559895850,7.39,198.45,198.33,5.1434433]
[1756559896255,7.39,198.45,198.36,5.1434433]
[1756559896551,7.39,198.45,198.37,7.59]
[1756559896854,7.39,198.45,198.33,5.1434433]
[1756559897058,7.39,198.45,198.34,7.59]
[1756559902554,7.39,198.45,198.3,7.59]
[1756559904156,7.39,198.45,198.33,7.59]
[1756559904757,7.39,198.45,198.35,5.1434433]
[1756559905056,7.39,198.45,198.36,7.59]
[1756559910856,7.39,198.45,198.29,7.59]
[1756559911063,7.39,198.44,198.29,12.7334433]
[1756559911262,5.1434433,198.45,198.29,12.7334433]
[1756559912264,7.39,198.44,198.29,7.59]
[1756559913465,7.39,198.44,198.32,7.59]
[1756559913866,0.03435747,198.4,198.32,7.59]
[1756559919572,0.03435747,198.4,198.32,5.1434433]
[1756559919775,0.03435747,198.4,198.33,7.81]
[1756559924976,0.03435747,198.4,198.35,5.1434433]
[1756559925269,0.03435747,198.4,198.36,7.81]
[1756559926880,0.03435747,198.4,198.35,5.1434433]
[1756559927478,0.03435747,198.4,198.36,7.81]
[1756559928080,0.03435747,198.4,198.33,7.81]
[1756559928280,0.03435747,198.4,198.35,5.1434433]
[1756559928480,0.03435747,198.4,198.36,7.81]
[1756559928681,0.03435747,198.4,198.39,7.81]
[1756559930674,7.9,198.5,198.39,7.81]
[1756559931481,7.9,198.57,198.42,7.81]
[1756559931683,7.9,198.57,198.44,5.1434433]
[1756559931883,7.9,198.57,198.45,7.81]
[1756559932083,7.9,198.57,198.48,0.03268283]
[1756559941086,7.9,198.57,198.48,7.84268283]
[1756559941291,3.19757098,198.55,198.48,0.03268283]
[1756559941498,7.9,198.54,198.48,0.03268283]
[1756559941998,11.09757098,198.49,198.48,0.03268283]
[1756559942192,7.9,198.49,198.48,0.03268283]
[1756559943493,3.19757098,198.53,198.48,0.03268283]
[1756559943888,3.19757098,198.5,198.39,3.19757098]
[1756559944097,3.19757098,198.47,198.37,7.81]
[1756559944292,7.9,198.49,198.28,7.97630737]
[1756559944293,11.09757098,198.44,198.33,3.19757098]
[1756559944495,3.19757098,198.44,198.4,0.03831445]
[1756559944796,7.9,198.43,198.4,0.03831445]
[1756559945601,11.09757098,198.41,198.4,0.03831445]
[1756559946601,7.9,198.41,198.4,0.03831445]
[1756559946901,11.09757098,198.41,198.4,0.03831445]
[1756559947299,7.74,198.43,198.4,0.03831445]
[1756559948901,10.93757098,198.47,198.4,0.03831445]
[1756559949304,7.74,198.47,198.4,3.23588543]
[1756559949499,10.93757098,198.51,198.41,7.98]
[1756559950305,7.74,198.51,198.44,0.03350878]
[1756559950505,10.93757098,198.51,198.44,0.03350878]
[1756559950699,7.74,198.51,198.44,8.01350878]
[1756559952609,7.74,198.51,198.44,0.03350878]
[1756559955003,12.85821818,198.51,198.44,0.03350878]
[1756559956005,139.48,198.56,198.32,7.98]
[1756559956006,7.74,198.44,198.32,7.98]
[1756559957208,7.74,198.41,198.28,7.98]
[1756559957411,5.11821818,198.42,198.28,7.98]
[1756559957412,7.74,198.39,198.36,0.03468649]
[1756559957813,0.03512759,198.4,198.36,0.03468649]
[1756559958010,5.11821818,198.39,198.36,0.03468649]
[1756559958210,7.74,198.38,198.36,0.03468649]
[1756559958410,5.11821818,198.39,198.36,0.03468649]
[1756559958714,7.74,198.39,198.36,0.03468649]
[1756559959015,7.74,198.39,198.28,7.98]
[1756559959016,0.46531351,198.36,198.28,7.98]
[1756559959222,7.74,198.39,198.28,7.98]
[1756559959914,5.11821818,198.38,198.28,7.98]
[1756559960107,7.74,198.37,198.28,7.98]
[1756559960420,0.03566461,198.35,198.28,7.98]
[1756559962716,5.15388279,198.35,198.24,346.6]
[1756559962917,7.74,198.34,198.24,7.98]
[1756559963718,0.03819878,198.31,198.24,7.98]
[1756559971230,0.03819878,198.31,198.23,5.11821818]
[1756559971231,12.85821818,198.42,198.27,7.98]
[1756559973735,7.74,198.42,198.3,7.98]
[1756559974629,12.85821818,198.42,198.3,7.98]
[1756559977627,7.74,198.42,198.31,7.4]
[1756559977831,12.98821818,198.45,198.31,7.4]
[1756559978934,7.87,198.45,198.31,7.4]
[1756559979330,7.87,198.45,198.33,5.11821818]
[1756559979637,7.87,198.45,198.34,7.4]
[1756559980839,7.87,198.45,198.35,5.11821818]
[1756559981033,338.72,198.46,198.36,7.4]
[1756559981236,12.98821818,198.49,198.36,7.4]
[1756559981539,12.98821818,198.49,198.39,7.4]
[1756559981540,11.0705965,198.49,198.39,7.4]
[1756559983540,7.87,198.49,198.39,7.4]
[1756559985332,5.12139048,198.55,198.4,5.12139048]
[1756559985534,7.87,198.54,198.41,7.4]
[1756559987441,444.44,198.58,198.38,7.4]
[1756559987442,7.87,198.51,198.38,7.4]
[1756559987742,7.87,198.48,198.38,7.4]
[1756559989048,12.99139048,198.48,198.38,7.4]
[1756559989646,7.87,198.48,198.38,7.4]
[1756559990246,12.99139048,198.48,198.38,7.4]
[1756559991742,7.87,198.48,198.38,7.4]
[1756559994746,7.87,198.45,198.33,7.4]
[1756559998255,7.87,198.45,198.34,7.4]
[1756560000256,7.87,198.42,198.3,7.4]
[1756560000551,7.87,198.39,198.3,7.4]
[1756560000851,7.87,198.39,198.26,346.14]
[1756560001054,7.87,198.39,198.27,7.4]
[1756560001455,7.87,198.54,198.3,7.4]
[1756560001655,7.87,198.45,198.3,7.4]
[1756560002554,7.87,198.45,198.33,7.4]
[1756560003353,7.87,198.45,198.37,3.20095204]
[1756560003560,7.87,198.45,198.37,10.60095204]
[1756560005956,7.87,198.45,198.39,3.20095204]
[1756560006156,7.87,198.45,198.37,7.4]
[1756560006361,7.87,198.45,198.39,3.20095204]
[1756560007962,7.87,198.45,198.38,3.20095204]
[1756560008358,8.09,198.49,198.41,3.20095204]
[1756560008556,8.09,198.53,198.45,8.08]
[1756560008960,8.09,198.53,198.47,3.20095204]
[1756560009354,8.09,198.53,198.45,8.08]
[1756560009559,8.09,198.53,198.47,3.20095204]
[1756560011761,8.09,198.53,198.32,8.08]
[1756560011959,8.09,198.53,198.3,3.20095204]
[1756560011960,8.09,198.53,198.42,3.20095204]
[1756560012464,8.09,198.53,198.43,3.20095204]
[1756560013960,3.20095204,198.48,198.37,3.20095204]
[1756560014268,8.09,198.47,198.37,11.28095204]
[1756560014763,8.09,198.47,198.38,8.08]
[1756560016861,3.20095204,198.5,198.38,8.08]
[1756560017765,8.09,198.51,198.4,3.20095204]
[1756560018062,11.29095204,198.51,198.41,8.08]
[1756560018268,8.09,198.47,198.27,8.08]
[1756560018467,8.09,198.47,198.37,8.08]
[1756560021368,8.09,198.47,198.39,3.20095204]
[1756560021669,8.09,198.47,198.4,8.08]
[1756560023370,3.20095204,198.49,198.4,8.08]
[1756560024368,8.09,198.51,198.4,8.08]
[1756560024568,11.29095204,198.51,198.4,8.08]
[1756560025568,11.29095204,198.45,198.44,0.0326547]
[1756560025972,11.29095204,198.45,198.34,8.08]
[1756560028671,8.09,198.45,198.34,8.08]
[1756560028874,11.29095204,198.45,198.34,8.08]
[1756560029471,11.29095204,198.45,198.34,11.28095204]
[1756560030376,8.09,198.45,198.34,11.28095204]
[1756560030774,11.29095204,198.45,198.34,11.28095204]
[1756560031477,8.09,198.45,198.34,11.28095204]
[1756560032177,11.29095204,198.45,198.34,11.28095204]
[1756560032978,8.09,198.45,198.34,11.28095204]
[1756560033178,8.09,198.41,198.27,8.08]
[1756560033375,8.09,198.41,198.3,8.08]
[1756560034281,3.20095204,198.39,198.3,8.08]
[1756560034474,8.09,198.38,198.3,8.08]
[1756560035080,8.09,198.38,198.27,3.20095204]
[1756560036577,8.09,198.38,198.26,350.02095204]
[1756560036880,3.20095204,198.39,198.26,350.02095204]
[1756560037375,7.7,198.38,198.26,350.02095204]
[1756560039275,7.7,198.38,198.27,7.89]
[1756560039480,7.7,198.38,198.29,3.20095204]
[1756560039780,12.66095204,198.48,198.3,7.89]
[1756560039981,3.20095204,198.42,198.32,3.20095204]
[1756560040278,7.7,198.43,198.35,3.20095204]
[1756560040482,7.7,198.47,198.36,7.89]
[1756560042379,7.7,198.47,198.38,3.20095204]
[1756560042584,7.7,198.47,198.39,7.89]
[1756560042881,10.90095204,198.51,198.42,7.89]
[1756560043082,7.7,198.51,198.42,7.89]
[1756560045382,338.84,198.58,198.45,7.89]
[1756560045581,3.20095204,198.56,198.45,7.89]
[1756560045887,3.20095204,198.53,198.45,7.89]
[1756560047387,10.90095204,198.53,198.45,7.89]
[1756560048091,7.7,198.53,198.45,7.89]
[1756560050394,7.7,198.53,198.45,11.09095204]
[1756560051588,7.7,198.53,198.45,7.89]
[1756560051791,7.7,198.53,198.45,11.09095204]
[1756560053895,7.7,198.57,198.48,3.20095204]
[1756560054201,7.7,198.57,198.49,7.89]
[1756560056193,7.7,198.61,198.49,7.89]
[1756560056492,10.90095204,198.61,198.49,7.89]
[1756560056990,10.90095204,198.61,198.44,15.3]
[1756560056991,7.7,198.61,198.51,3.20095204]
[1756560057295,7.7,198.61,198.54,3.20095204]
[1756560057495,111.12719251,198.66,198.57,3.20095204]
[1756560057693,111.12719251,198.66,198.58,7.89]
[1756560058092,7.7,198.67,198.58,7.89]
[1756560059498,7.7,198.67,198.6,3.20095204]
[1756560059901,7.7,198.67,198.61,7.89]
[1756560060991,3.20095204,198.71,198.61,7.89]
[1756560061189,7.7,198.72,198.63,7.89]
[1756560061389,7.7,198.72,198.62,3.20095204]
[1756560061390,7.7,198.81,198.71,3.20095204]
[1756560061597,7.7,198.79,198.68,94.58]
[1756560061796,10.90095204,198.79,198.66,7.89]
[1756560061996,10.90095204,198.79,198.67,3.20095204]
[1756560062398,10.90095204,198.79,198.68,7.89]
[1756560063005,7.7,198.79,198.7,3.20095204]
[1756560063297,7.7,198.79,198.67,5.1047128]
[1756560063497,7.7,198.79,198.67,12.9947128]
[1756560063901,7.7,198.79,198.68,7.89]
[1756560065000,0.87575811,198.84,198.64,7.89]
[1756560065001,7.7,198.76,198.64,7.89]
[1756560065200,5.1047128,198.77,198.55,7.89]
[1756560065401,7.7,198.76,198.61,7.89]
[1756560065600,7.7,198.73,198.61,7.89]
[1756560066495,7.7,198.73,198.57,12.9947128]
[1756560066699,7.7,198.7,198.57,7.89]
[1756560067103,7.7,198.7,198.58,5.1047128]
[1756560067302,7.7,198.7,198.59,7.84]
[1756560072200,7.7,198.7,198.54,5.1047128]
[1756560072406,5.1047128,198.68,198.54,12.9447128]
[1756560072603,7.88,198.64,198.49,5.1047128]
[1756560072808,7.88,198.64,198.5,7.84]
[1756560073409,7.88,198.61,198.5,7.84]
[1756560074303,7.88,198.58,198.5,7.84]
[1756560074503,7.88,198.58,198.45,7.84]
[1756560075506,7.88,198.55,198.45,7.84]
[1756560076810,7.88,198.52,198.43,338.36]
[1756560078407,5.1047128,198.5,198.4,7.84]
[1756560078710,5.1047128,198.47,198.35,7.84]
[1756560079009,7.88,198.46,198.35,7.84]
[1756560082305,7.88,198.53,198.38,7.84]
[1756560085508,7.89,198.43,198.31,7.84]
[1756560085709,5.1047128,198.48,198.31,7.84]
[1756560085710,7.89,198.41,198.31,7.84]
[1756560087811,7.89,198.38,198.26,7.84]
[1756560088017,5.1047128,198.36,198.26,7.84]
[1756560088316,7.89,198.38,198.26,7.84]
[1756560088708,7.89,198.38,198.28,5.1047128]
[1756560088906,5.1047128,198.42,198.29,7.84]
[1756560089106,7.89,198.41,198.29,7.84]
[1756560089711,7.89,198.38,198.29,7.84]
[1756560094320,7.89,198.35,198.18,7.84]
[1756560094512,7.89,198.35,198.21,7.84]
[1756560095812,7.89,198.32,198.21,7.84]
[1756560099722,12.9947128,198.32,198.21,7.84]
[1756560102025,5.1047128,198.31,198.21,7.84]
[1756560104519,7.7,198.3,198.21,7.84]
[1756560104824,7.7,198.3,198.17,346.1]
[1756560106120,5.1047128,198.28,198.17,346.1]
[1756560106826,7.7,198.27,198.17,346.1]
[1756560107923,5.1047128,198.28,198.18,7.52]
[1756560108127,7.7,198.3,198.18,7.52]
[1756560110130,5.1047128,198.28,198.18,7.52]
[1756560111732,7.7,198.3,198.18,7.52]
[1756560111932,5.1047128,198.29,198.18,7.52]
[1756560112130,7.7,198.28,198.18,7.52]
[1756560112438,7.7,198.25,198.18,7.52]
[1756560115239,39.64,198.3,198.18,7.52]
[1756560115240,7.7,198.3,198.18,7.52]
[1756560118444,5.1047128,198.35,198.2,7.52]
[1756560118644,7.7,198.34,198.2,7.52]
[1756560119643,7.7,198.31,198.2,7.52]
[1756560119946,5.1047128,198.29,198.08,5.57243843]
[1756560120142,7.7,198.25,198.09,7.52]
[1756560120343,7.7,198.25,198.11,7.52]
[1756560120844,7.7,198.22,198.11,7.52]
[1756560121041,5.1047128,198.2,198.11,7.52]
[1756560121242,5.1047128,198.2,198.04,5.1047128]
[1756560121243,7.7,198.16,197.93,7.52]
[1756560121542,5.1047128,198.13,198.0,7.52]
[1756560121742,7.7,198.12,198.0,7.52]
[1756560123148,7.7,198.09,198.0,7.52]
[1756560123341,7.7,198.14,198.0,7.52]
[1756560123549,7.7,198.14,198.01,5.1047128]
[1756560123742,7.7,198.14,198.02,7.52]
[1756560126344,7.7,198.14,198.03,7.52]
[1756560126545,5.1047128,198.16,198.03,7.52]
[1756560126546,12.8047128,198.19,198.03,7.52]
[1756560126749,12.8047128,198.19,198.06,7.52]
[1756560127251,7.7,198.19,198.06,7.52]
[1756560131149,5.1047128,198.21,198.06,7.52]
[1756560131150,12.5447128,198.21,198.06,7.52]
[1756560131550,7.44,198.21,198.09,8.18]
[1756560132154,12.5447128,198.21,198.09,8.18]
[1756560132454,7.44,198.18,198.04,8.18]
[1756560133958,7.44,198.15,198.04,8.18]
[1756560136657,7.44,198.12,198.04,8.18]
[1756560136859,7.44,198.12,197.92,339.02]
[1756560136860,7.44,198.12,197.98,8.18]
[1756560140865,7.44,198.23,198.01,8.18]
[1756560141165,7.44,198.17,198.04,8.18]
[1756560145461,7.44,198.23,198.07,8.18]
[1756560145760,7.44,198.23,198.11,8.18]
[1756560147464,7.44,198.2,198.07,8.18]
[1756560149159,7.44,198.2,198.07,13.2847128]
[1756560149361,339.02,198.24,198.11,8.18]
[1756560149561,7.44,198.23,198.11,8.18]
[1756560149763,5.1047128,198.22,198.11,8.18]
[1756560149962,7.44,198.21,198.11,8.18]
[1756560152669,346.46,198.24,198.11,8.18]
[1756560153267,346.46,198.24,198.12,5.1047128]
[1756560153570,346.46,198.24,198.13,8.18]
[1756560156359,346.46,198.24,198.02,5.57243843]
[1756560156560,7.44,198.21,198.05,5.1047128]
[1756560156760,111.56,198.21,198.06,8.18]
[1756560157370,7.43,198.18,198.06,8.18]
[1756560160671,97.86,198.22,198.06,8.18]
[1756560160672,7.43,198.21,198.06,8.18]
[1756560161469,7.43,198.21,198.09,7.46]
[1756560163370,7.43,198.18,198.09,7.46]
[1756560164373,7.43,198.18,198.05,12.5647128]
[1756560164573,7.43,198.18,198.05,7.46]
[1756560164776,5.1047128,198.16,198.05,7.46]
[1756560165070,7.43,198.15,198.05,7.46]
[1756560165669,7.43,198.15,198.05,5.1047128]
[1756560165871,12.5347128,198.19,198.06,7.46]
[1756560166073,7.43,198.19,198.06,7.46]
[1756560171777,7.43,198.19,198.06,12.5647128]
[1756560171971,7.43,198.19,198.09,5.1047128]
[1756560172177,7.43,198.19,198.1,7.46]
[1756560173874,7.43,198.19,198.06,7.46]
[1756560174082,7.43,198.17,198.06,7.46]
[1756560183494,7.43,198.17,198.08,7.46]
[1756560185593,3.21021437,198.2,198.08,7.46]
[1756560185994,3.21021437,198.2,198.1,3.21021437]
[1756560186206,3.21021437,198.23,198.13,3.21021437]
[1756560186395,339.02,198.24,198.14,7.46]
[1756560187900,7.43,198.25,198.14,7.46]
[1756560188499,7.43,198.25,198.14,10.67021437]
[1756560188699,10.64021437,198.25,198.14,10.67021437]
[1756560189504,7.43,198.25,198.18,7.64]
[1756560191500,3.21021437,198.28,198.18,7.64]
[1756560192301,10.66021437,198.34,198.23,7.64]
[1756560192505,10.66021437,198.34,198.25,3.21021437]
[1756560192804,10.66021437,198.34,198.23,7.64]
[1756560195507,3.21021437,198.32,198.23,7.64]
[1756560195897,10.66021437,198.34,198.23,7.64]
[1756560196399,7.45,198.34,198.26,7.64]
[1756560198207,7.45,198.43,198.26,7.64]
[1756560198505,7.45,198.39,198.29,7.64]
[1756560202808,121.92352156,198.44,198.32,7.64]
[1756560203509,3.21021437,198.38,198.27,7.64]
[1756560203707,3.21021437,198.38,198.27,10.85021437]
[1756560203911,7.45,198.37,198.27,10.85021437]
[1756560204614,7.45,198.37,198.26,14.7]
[1756560204615,3.21021437,198.41,198.3,3.21021437]
[1756560204813,3.21021437,198.41,198.31,7.64]
[1756560205016,7.45,198.43,198.31,7.64]
[1756560205314,3.21021437,198.41,198.31,7.64]
[1756560205908,7.45,198.43,198.34,7.64]
[1756560207016,3.21021437,198.39,198.29,3.21021437]
[1756560207216,3.21021437,198.39,198.28,7.64]
[1756560207418,3.21021437,198.39,198.28,10.85021437]
[1756560207619,7.45,198.38,198.28,10.85021437]
[1756560213923,7.45,198.38,198.31,3.21021437]
[1756560214132,10.66021437,198.42,198.32,7.64]
[1756560214722,10.66021437,198.42,198.34,3.21021437]
[1756560214723,7.45,198.42,198.34,3.21021437]
[1756560215027,3.21021437,198.45,198.35,7.64]
[1756560215523,7.45,198.46,198.37,3.21021437]
[1756560215823,338.88,198.59,198.38,7.64]
[1756560216029,3.21021437,198.49,198.39,7.64]
[1756560216225,7.45,198.48,198.39,7.64]
[1756560218030,3.21021437,198.5,198.41,3.21021437]
[1756560218231,3.21021437,198.5,198.42,7.73]
[1756560220334,10.71021437,198.5,198.42,7.73]
[1756560221428,10.71021437,198.5,198.39,3.21021437]
[1756560223830,3.21021437,198.49,198.39,3.21021437]
[1756560224634,7.5,198.5,198.39,3.21021437]
[1756560224835,3.21021437,198.49,198.39,3.21021437]
[1756560225830,7.5,198.48,198.39,3.21021437]
[1756560228938,7.5,198.48,198.4,7.73]
[1756560232931,7.5,198.52,198.42,3.21021437]
[1756560233133,7.5,198.56,198.46,7.73]
[1756560235334,10.71021437,198.59,198.48,3.21021437]
[1756560235539,7.5,198.59,198.49,7.73]
[1756560238345,7.5,198.59,198.51,3.21021437]
[1756560238644,7.5,198.59,198.52,7.73]
[1756560240844,10.71021437,198.63,198.52,7.73]
[1756560241143,10.71021437,198.63,198.54,3.21021437]
[1756560242344,7.5,198.63,198.55,7.73]
[1756560243243,0.0340642,198.61,198.57,0.03595348]
[1756560243447,7.5,198.6,198.57,0.03595348]